bitfinex/quotes_SOLUSD_20251124
["timestamp","ask_amount","ask_price","bid_price","bid_amount"]
[1764004098401,8.42548068,134.11,134.1,0.2]
[1764004098717,8.42548068,134.11,134.08,0.2]
[1764004099014,7.71548068,134.09,134.07,0.2]
[1764004099187,11.03548068,134.08,134.07,0.2]
[1764004099614,11.88764225,134.08,134.06,0.2]
[1764004099814,8.42548068,134.07,134.06,0.2]
[1764004100192,34.66533394,134.07,134.06,0.2]
[1764004100797,24.73434468,134.07,134.06,0.2]
[1764004102113,28.05434468,134.07,134.06,0.2]
[1764004107616,12.70557597,134.16,134.06,0.2]
[1764004107815,7.71548068,134.08,134.06,0.2]
[1764004108117,3.32,134.07,134.06,0.2]
[1764004109017,7.71548068,134.1,134.06,0.91]
[1764004109320,3.32,134.09,134.06,8.62548068]
[1764004109505,3.32,134.09,134.06,0.91]
[1764004109705,11.03548068,134.09,134.06,0.91]
[1764004109905,11.03548068,134.09,134.06,0.2]
[1764004110106,7.71548068,134.08,134.06,0.2]
[1764004110718,12.11404588,134.08,134.06,0.2]
[1764004112006,3.32,134.09,134.06,13.02404588]
[1764004112308,16.308864,134.13,134.06,13.02404588]
[1764004112309,12.11404588,134.13,134.08,12.11404588]
[1764004112512,12.11404588,134.13,134.09,12.11404588]
[1764004112903,12.81404588,134.13,134.09,12.82404588]
[1764004113303,3.32,134.14,134.09,12.11404588]
[1764004113502,3.32,134.14,134.1,12.82404588]
[1764004113712,3.32,134.14,134.11,12.11404588]
[1764004113925,3.32,134.14,134.11,12.82404588]
[1764004114415,12.11404588,134.13,134.09,0.71]
[1764004114706,12.81404588,134.13,134.09,0.71]
[1764004115330,12.11404588,134.13,134.09,0.71]
[1764004115509,12.81404588,134.13,134.09,0.71]
[1764004115905,12.11404588,134.18,134.12,12.11404588]
[1764004116114,3.32,134.17,134.13,12.82404588]
[1764004116634,12.11404588,134.15,134.11,0.71]
[1764004116941,12.81404588,134.16,134.11,12.82404588]
[1764004117307,12.81404588,134.16,134.12,0.71]
[1764004117606,3.32,134.17,134.12,12.82404588]
[1764004117927,12.11404588,134.2,134.15,12.11404588]
[1764004118129,3.32,134.19,134.15,12.11404588]
[1764004118317,4.02,134.19,134.15,12.82404588]
[1764004118517,3.32,134.19,134.15,19.56832576]
[1764004118721,0.2,134.31,134.25,16.308864]
[1764004118921,0.2,134.31,134.3,12.11404588]
[1764004119641,0.2,134.31,134.29,12.82404588]
[1764004119938,0.2,134.31,134.3,12.11404588]
[1764004120237,0.2,134.31,134.3,30.20105152]
[1764004120443,0.24999497,134.45,134.39,16.308864]
[1764004120617,0.24999497,134.45,134.43,12.11404588]
[1764004120932,0.24999497,134.45,134.44,21.90287357]
[1764004121142,0.24999497,134.45,134.44,9.78882769]
[1764004121336,0.24999497,134.45,134.44,21.90287357]
[1764004121639,0.24999497,134.45,134.44,22.04503514]
[1764004121818,0.24999497,134.45,134.44,92.03389914]
[1764004122019,4.04,134.55,134.48,0.14216157]
[1764004122225,0.7,134.58,134.51,9.78882769]
[1764004122430,29.12290988,134.58,134.53,12.11404588]
[1764004122636,0.7,134.58,134.55,12.11404588]
[1764004123252,0.7,134.58,134.54,12.11404588]
[1764004124023,0.7,134.58,134.54,21.90287357]
[1764004124355,5.4646,134.59,134.57,21.90287357]
[1764004124715,5.4646,134.59,134.58,12.11404588]
[1764004125237,5.4646,134.59,134.57,12.11404588]
[1764004126946,5.4646,134.59,134.54,9.78882769]
[1764004126947,5.4646,134.59,134.56,12.11404588]
[1764004128343,5.4646,134.59,134.57,21.90287357]
[1764004128520,5.4646,134.59,134.58,12.11404588]
[1764004128723,5.4646,134.59,134.57,12.11404588]
[1764004128923,5.4646,134.59,134.58,9.78882769]
[1764004129449,5.4646,134.59,134.58,22.04503514]
[1764004130340,5.4646,134.59,134.53,3.34]
[1764004130543,18.22864588,134.59,134.55,9.78882769]
[1764004130747,6.1146,134.59,134.55,21.90287357]
[1764004131039,0.65,134.58,134.53,12.11404588]
[1764004131339,5.4646,134.59,134.57,12.11404588]
[1764004131550,5.4646,134.59,134.58,22.04503514]
[1764004131937,5.4646,134.59,134.58,22.13503514]
[1764004132322,5.4646,134.59,134.58,29.56555973]
[1764004132519,5.3746,134.59,134.58,132.88555973]
[1764004132859,5.3746,134.59,134.58,82.90555973]
[1764004133540,3.29532787,134.64,134.62,9.78882769]
[1764004133717,3.29532787,134.64,134.61,66.308864]
[1764004133718,3.29532787,134.64,134.63,22.04503514]
[1764004134229,0.67,134.69,134.64,0.14216157]
[1764004134440,0.67,134.69,134.63,0.14216157]
[1764004134632,12.11404588,134.67,134.61,3.34]
[1764004134834,26.09769169,134.59,134.45,50.0]
[1764004135024,12.11404588,134.5,134.44,12.11404588]
[1764004135224,12.11404588,134.52,134.45,50.0]
[1764004135435,12.11404588,134.5,134.43,50.0]
[1764004135733,12.78404588,134.51,134.46,12.11404588]
[1764004136130,0.67,134.5,134.46,12.11404588]
[1764004137350,0.67,134.56,134.5,9.78882769]
[1764004137538,0.67,134.56,134.52,12.11404588]
[1764004137853,0.67,134.56,134.5,9.78882769]
[1764004137854,4.01,134.58,134.51,0.14216157]
[1764004138042,4.01,134.58,134.54,12.11404588]
[1764004138358,0.67,134.57,134.55,12.11404588]
[1764004138667,16.308864,134.6,134.56,12.11404588]
[1764004138831,0.67,134.59,134.57,12.11404588]
[1764004139029,12.78404588,134.59,134.51,0.14216157]
[1764004139224,0.67,134.59,134.56,12.11404588]
[1764004139428,0.67,134.62,134.58,12.11404588]
[1764004139736,15.45404588,134.62,134.57,12.11404588]
[1764004139931,0.67,134.61,134.57,12.11404588]
[1764004140131,0.67,134.61,134.58,12.11404588]
[1764004140546,12.11404588,134.6,134.54,16.308864]
[1764004140736,164.4,134.71,134.59,12.11404588]
[1764004140940,164.4,134.71,134.58,9.78882769]
[1764004140941,12.11404588,134.69,134.64,12.11404588]
[1764004141453,12.11404588,134.66,134.61,12.11404588]
[1764004141931,12.78404588,134.65,134.59,9.78882769]
[1764004142132,12.11404588,134.63,134.59,9.78882769]
[1764004142536,0.67,134.62,134.59,9.78882769]
[1764004143065,0.67,134.62,134.58,12.11404588]
[1764004143422,3.34,134.64,134.58,12.11404588]
[1764004143740,0.67,134.63,134.59,12.11404588]
[1764004144543,12.11404588,134.62,134.57,21.90287357]
[1764004144733,12.11404588,134.61,134.57,9.78882769]
[1764004145263,0.67,134.61,134.57,21.90287357]
[1764004146674,0.67,134.61,134.57,9.78882769]
[1764004147169,12.78404588,134.61,134.57,9.78882769]
[1764004147369,12.11404588,134.59,134.54,9.78882769]
[1764004147666,12.78404588,134.6,134.55,21.90287357]
[1764004148077,12.11404588,134.58,134.53,12.25620745]
[1764004148281,12.78404588,134.58,134.54,9.78882769]
[1764004148640,0.67,134.57,134.53,9.78882769]
[1764004148860,0.67,134.57,134.53,21.90287357]
[1764004149379,12.11404588,134.55,134.49,10.77545982]
[1764004149674,12.11404588,134.55,134.5,12.11404588]
[1764004149848,12.11404588,134.52,134.46,9.78882769]
[1764004150051,0.67,134.54,134.46,12.11404588]
[1764004150052,12.11404588,134.51,134.46,12.11404588]
[1764004150238,0.67,134.5,134.45,12.11404588]
[1764004150437,12.78404588,134.55,134.49,12.11404588]
[1764004150645,12.78404588,134.58,134.54,12.11404588]
[1764004150867,0.67,134.57,134.54,12.11404588]
[1764004151056,0.67,134.57,134.53,12.11404588]
[1764004151654,0.67,134.57,134.54,9.78882769]
[1764004152367,12.78404588,134.57,134.51,9.93098926]
[1764004152557,12.78404588,134.56,134.51,9.93098926]
[1764004152748,12.78404588,134.56,134.51,9.78882769]
[1764004152950,0.67,134.55,134.51,9.78882769]
[1764004153168,12.11404588,134.54,134.49,28.42290988]
[1764004153345,12.78404588,134.55,134.5,9.78882769]
[1764004153737,0.67,134.54,134.5,21.90287357]
[1764004153955,0.67,134.57,134.52,9.78882769]
[1764004154153,16.12404588,134.57,134.52,12.11404588]
[1764004154359,12.11404588,134.56,134.51,12.11404588]
[1764004154550,12.78404588,134.56,134.51,12.11404588]
[1764004154746,12.78404588,134.56,134.5,9.78882769]
[1764004154747,0.67,134.55,134.5,9.78882769]
[1764004154942,12.78404588,134.55,134.5,29.33774393]
[1764004155143,0.67,134.55,134.5,29.33774393]
[1764004155344,12.78404588,134.54,134.5,9.78882769]
[1764004155650,29.09290988,134.54,134.5,9.78882769]
[1764004155850,0.67,134.53,134.5,9.78882769]
[1764004156362,0.67,134.53,134.5,21.90287357]
[1764004156561,0.67,134.53,134.48,9.78882769]
[1764004156769,0.67,134.53,134.5,12.11404588]
[1764004157344,0.67,134.54,134.5,12.11404588]
[1764004157567,0.67,134.53,134.5,12.11404588]
[1764004158271,0.67,134.53,134.5,9.78882769]
[1764004159175,12.78404588,134.53,134.49,12.11404588]
[1764004159351,0.67,134.53,134.5,21.90287357]
[1764004159878,0.67,134.59,134.54,0.14216157]
[1764004160079,0.67,134.59,134.55,12.11404588]
[1764004160370,0.67,134.59,134.54,0.14216157]
[1764004160371,0.67,134.59,134.56,12.11404588]
[1764004160876,0.67,134.59,134.54,3.48216157]
[1764004161054,0.67,134.59,134.55,9.78882769]
[1764004161055,12.78404588,134.59,134.55,9.78882769]
[1764004161580,0.67,134.58,134.55,21.90287357]
[1764004163085,12.11404588,134.57,134.54,9.78882769]
[1764004163285,12.78404588,134.58,134.54,9.78882769]
[1764004163464,16.308864,134.6,134.52,0.14216157]
[1764004163651,16.308864,134.6,134.55,12.11404588]
[1764004163652,0.66,134.59,134.55,12.11404588]
[1764004163855,12.77404588,134.59,134.54,12.11404588]
[1764004164157,12.77404588,134.59,134.53,9.78882769]
[1764004164158,12.11404588,134.57,134.53,9.78882769]
[1764004164377,12.77404588,134.58,134.53,9.78882769]
[1764004164552,12.11404588,134.56,134.5,12.11404588]
[1764004164759,31.76290988,134.57,134.52,21.90287357]
[1764004164968,0.66,134.56,134.52,9.78882769]
[1764004165172,12.11404588,134.54,134.49,9.78882769]
[1764004165472,12.11404588,134.53,134.49,9.78882769]
[1764004165650,12.11404588,134.53,134.48,12.11404588]
[1764004165849,0.66,134.53,134.49,12.11404588]
[1764004166047,0.66,134.52,134.49,12.11404588]
[1764004166457,0.66,134.52,134.49,9.78882769]
[1764004166655,0.66,134.52,134.49,21.90287357]
[1764004166871,0.66,134.52,134.49,9.78882769]
[1764004167076,0.66,134.52,134.49,21.90287357]
[1764004167580,0.66,134.52,134.49,9.78882769]
[1764004168766,0.66,134.52,134.49,21.90287357]
[1764004169576,0.66,134.52,134.47,23.88709916]
[1764004169790,0.66,134.52,134.48,12.11404588]
[1764004170755,16.308864,134.58,134.51,12.11404588]
[1764004170756,0.66,134.56,134.51,12.11404588]
[1764004170957,3.34,134.59,134.54,21.90287357]
[1764004171280,0.66,134.61,134.58,12.11404588]
[1764004171469,0.66,134.61,134.59,21.90287357]
[1764004171862,12.11404588,134.63,134.59,21.90287357]
[1764004172180,0.66,134.62,134.59,9.78882769]
[1764004172379,0.66,134.62,134.56,3.48216157]
[1764004172380,12.77404588,134.62,134.57,12.11404588]
[1764004172586,8.32980117,134.62,134.57,17.45862886]
[1764004172879,8.32980117,134.62,134.56,9.93098926]
[1764004172880,9.78882769,134.68,134.58,17.45862886]
[1764004173083,0.66,134.63,134.59,7.66980117]
[1764004173282,0.66,134.63,134.6,9.78882769]
[1764004173580,0.66,134.63,134.6,17.45862886]
[1764004173781,0.66,134.63,134.59,0.14216157]
[1764004173964,0.66,134.63,134.6,9.78882769]
[1764004174171,8.32980117,134.65,134.6,17.45862886]
[1764004174372,3.34,134.66,134.59,17.60079043]
[1764004174373,8.32980117,134.64,134.59,17.60079043]
[1764004174880,7.66980117,134.62,134.58,9.78882769]
[1764004175094,7.66980117,134.61,134.58,9.78882769]
[1764004175298,7.66980117,134.61,134.56,24.89021292]
[1764004175501,8.32980117,134.61,134.57,0.14216157]
[1764004175807,8.32980117,134.61,134.53,68.58236048]
[1764004175808,7.66980117,134.59,134.53,7.66980117]
[1764004175964,7.66980117,134.58,134.53,7.66980117]
[1764004176372,0.66,134.58,134.54,7.66980117]
[1764004177100,8.32980117,134.58,134.53,17.45862886]
[1764004177410,7.66980117,134.57,134.52,17.45862886]
[1764004177702,7.66980117,134.57,134.5,53.34]
[1764004177703,7.66980117,134.55,134.5,18.44456102]
[1764004177888,7.66980117,134.55,134.51,9.78882769]
[1764004178204,0.66,134.55,134.51,17.45862886]
[1764004178506,9.78882769,134.46,134.41,0.2]
[1764004178798,47.46843003,134.52,134.41,0.2]
[1764004178799,19.668864,134.45,134.41,0.2]
[1764004179002,19.688864,134.45,134.41,0.2]
[1764004179209,37.14749286,134.45,134.41,0.2]
[1764004179702,16.308864,134.42,134.41,0.2]
[1764004179878,23.97866517,134.42,134.41,0.2]
[1764004180298,38.73800956,134.42,134.41,0.2]
[1764004181213,41.43729403,134.42,134.32,0.72]
[1764004181388,7.66980117,134.36,134.32,0.72]
[1764004181584,11.04980117,134.37,134.32,8.38980117]
[1764004181991,7.66980117,134.4,134.35,7.66980117]
[1764004182201,3.38,134.38,134.35,7.66980117]
[1764004182381,3.38,134.38,134.35,8.38980117]
[1764004182580,16.308864,134.45,134.37,7.66980117]
[1764004182782,7.66980117,134.42,134.37,17.45862886]
[1764004183098,7.66980117,134.41,134.37,18.17862886]
[1764004183278,7.66980117,134.41,134.38,0.72]
[1764004183478,11.04980117,134.42,134.38,0.72]
[1764004184409,7.66980117,134.41,134.38,0.72]
[1764004184585,11.04980117,134.42,134.38,0.72]
[1764004185188,7.66980117,134.4,134.36,0.72]
[1764004185387,7.66980117,134.4,134.35,7.66980117]
[1764004185605,3.38,134.42,134.34,18.17862886]
[1764004185606,7.66980117,134.39,134.34,18.17862886]
[1764004185777,7.66980117,134.38,134.35,0.72]
[1764004185976,7.66980117,134.38,134.33,18.17862886]
[1764004186384,7.66980117,134.38,134.34,0.72]
[1764004187113,7.66980117,134.38,134.34,8.38980117]
[1764004187604,7.66980117,134.38,134.34,0.72]
[1764004188388,26.09769169,134.41,134.31,0.72]
[1764004188606,7.66980117,134.36,134.31,8.38980117]
[1764004188884,3.38,134.37,134.34,7.66980117]
[1764004189391,3.38,134.37,134.34,8.38980117]
[1764004189600,11.04980117,134.38,134.34,8.38980117]
[1764004189795,3.38,134.38,134.35,0.72]
[1764004189998,7.66980117,134.39,134.35,0.72]
[1764004190402,11.04980117,134.39,134.35,0.72]
[1764004190897,3.38,134.39,134.35,0.72]
[1764004191101,7.66980117,134.39,134.35,0.72]
[1764004191318,16.308864,134.4,134.36,7.66980117]
[1764004191617,11.02980117,134.4,134.35,0.72]
[1764004191825,11.02980117,134.4,134.35,8.38980117]
[1764004192224,11.02980117,134.4,134.36,0.72]
[1764004192796,7.66980117,134.41,134.36,8.38980117]
[1764004192996,3.36,134.4,134.37,7.66980117]
[1764004193220,3.36,134.4,134.37,0.66]
[1764004193808,7.66980117,134.4,134.37,0.66]
[1764004194013,11.02980117,134.4,134.35,8.32980117]
[1764004194214,7.66980117,134.39,134.35,17.45862886]
[1764004194418,11.02980117,134.4,134.36,8.32980117]
[1764004194924,11.02980117,134.4,134.37,0.66]
[1764004196534,3.36,134.42,134.38,7.66980117]
[1764004196699,3.36,134.42,134.39,0.66]
[1764004197310,7.66980117,134.48,134.39,8.32980117]
[1764004197641,7.66980117,134.44,134.39,8.32980117]
[1764004197845,7.66980117,134.4,134.36,0.66]
[1764004199210,3.36,134.43,134.36,0.66]
[1764004199403,7.66980117,134.41,134.36,15.7724769]
[1764004199609,7.66980117,134.41,134.36,8.32980117]
[1764004199920,7.66980117,134.38,134.33,31.42291511]
[1764004200104,7.66980117,134.38,134.35,0.66]
[1764004200312,7.66980117,134.4,134.35,0.66]
[1764004200802,3.36,134.39,134.35,0.66]
[1764004201002,11.02980117,134.39,134.35,0.66]
[1764004201239,7.66980117,134.36,134.32,0.66]
[1764004201399,7.66980117,134.35,134.32,0.66]
[1764004201603,7.66980117,134.33,134.3,0.66]
[1764004201805,3.36,134.34,134.27,8.32980117]
[1764004202132,7.66980117,134.32,134.28,9.78882769]
[1764004202334,7.66980117,134.32,134.28,16.968864]
[1764004202516,7.66980117,134.33,134.29,0.66]
[1764004203926,7.66980117,134.31,134.27,0.66]
[1764004204124,7.66980117,134.28,134.24,0.66]
[1764004204328,3.36,134.28,134.2,8.32980117]
[1764004204510,7.66980117,134.32,134.27,7.66980117]
[1764004204710,9.66980116,134.4,134.27,7.66980117]
[1764004204711,16.308864,134.34,134.27,7.66980117]
[1764004205049,11.04980117,134.33,134.28,8.32980117]
[1764004205727,16.308864,134.34,134.24,36.08062921]
[1764004205728,16.308864,134.34,134.29,8.32980117]
[1764004205927,7.66980117,134.32,134.27,7.66980117]
[1764004206337,11.04980117,134.32,134.28,0.66]
[1764004208137,11.04980117,134.32,134.28,8.32980117]
[1764004208337,7.66980117,134.33,134.28,8.32980117]
[1764004208631,16.308864,134.35,134.32,7.66980117]
[1764004208632,3.38,134.35,134.32,7.66980117]
[1764004208837,3.38,134.35,134.31,7.66980117]
[1764004209054,1.99999999,134.43,134.32,7.66980117]
[1764004209250,9.78882769,134.42,134.35,7.66980117]
[1764004209420,7.66980117,134.39,134.35,7.66980117]
[1764004209618,3.38,134.38,134.35,7.66980117]
[1764004209814,3.38,134.38,134.35,8.32980117]
[1764004210045,3.38,134.38,134.35,0.66]
[1764004211746,3.36,134.41,134.37,7.66980117]
[1764004212246,3.36,134.41,134.37,8.32980117]
[1764004212571,3.36,134.41,134.35,32.0818685]
[1764004212572,7.66980117,134.4,134.35,32.0818685]
[1764004212951,3.36,134.41,134.36,0.66]
[1764004213119,3.36,134.41,134.38,7.66980117]
[1764004213320,3.36,134.41,134.36,8.10269127]
[1764004213521,3.36,134.41,134.37,8.32980117]
[1764004215131,16.308864,134.44,134.39,7.66980117]
[1764004215333,3.36,134.43,134.4,7.66980117]
[1764004215553,3.36,134.43,134.39,7.66980117]
[1764004215858,3.36,134.43,134.38,8.10149149]
[1764004216026,3.36,134.43,134.4,7.66980117]
[1764004216346,3.36,134.43,134.39,8.32980117]
[1764004216757,7.66980117,134.41,134.36,0.66]
[1764004216926,7.66980117,134.41,134.35,8.32980117]
[1764004217124,7.66980117,134.4,134.35,8.32980117]
[1764004217541,3.36,134.43,134.34,9.78882769]
[1764004217542,7.66980117,134.39,134.34,7.66980117]
[1764004217748,3.36,134.38,134.35,0.66]
[1764004218339,11.02980117,134.38,134.35,0.66]
[1764004218543,11.02980117,134.38,134.33,8.32980117]
[1764004218745,7.66980117,134.35,134.3,0.66]
[1764004218951,7.66980117,134.34,134.3,0.66]
[1764004219134,3.36,134.33,134.3,8.32980117]
[1764004219561,3.36,134.33,134.31,0.66]
[1764004219731,3.36,134.33,134.31,8.32980117]
[1764004219931,7.66980117,134.36,134.31,8.32980117]
[1764004220255,16.308864,134.37,134.31,8.32980117]
[1764004220256,11.02980117,134.35,134.31,0.66]
[1764004220425,7.66980117,134.35,134.31,0.66]
[1764004220830,11.02980117,134.34,134.28,0.66]
[1764004221052,7.66980117,134.33,134.28,8.32980117]
[1764004221241,7.66980117,134.33,134.28,0.66]
[1764004221444,7.66980117,134.32,134.28,0.66]
[1764004221851,7.66980117,134.3,134.26,8.32980117]
[1764004222155,11.02980117,134.29,134.24,8.32980117]
[1764004222361,11.02980117,134.29,134.24,0.66]
[1764004222531,7.66980117,134.28,134.24,0.66]
[1764004222730,11.02980117,134.29,134.24,8.32980117]
[1764004223169,7.66980117,134.28,134.24,0.66]
[1764004223355,7.66980117,134.27,134.22,8.33980117]
[1764004223758,7.66980117,134.28,134.23,8.33980117]
[1764004224271,3.36,134.29,134.2,0.67]
[1764004224564,7.66980117,134.25,134.2,8.33980117]
[1764004224867,16.308864,134.3,134.2,0.67]
[1764004224868,11.02980117,134.24,134.2,0.67]
[1764004225060,11.02980117,134.23,134.19,0.2]
[1764004225252,7.66980117,134.24,134.19,8.53980117]
[1764004225549,3.36,134.22,134.19,8.53980117]
[1764004225931,11.02980117,134.22,134.19,0.87]
[1764004226362,3.36,134.21,134.19,0.2]
[1764004227576,3.36,134.21,134.19,0.87]
[1764004227768,7.66980117,134.23,134.19,0.87]
[1764004228061,3.36,134.22,134.2,8.33980117]
[1764004228265,3.36,134.22,134.2,0.67]
[1764004228441,16.308864,134.25,134.2,0.67]
[1764004228442,3.36,134.23,134.2,0.67]
[1764004229237,3.36,134.23,134.19,7.86980117]
[1764004229456,3.36,134.23,134.19,8.53980117]
[1764004230435,3.36,134.23,134.2,0.67]
[1764004231358,3.36,134.23,134.21,7.66980117]
[1764004231788,3.36,134.23,134.21,8.33980117]
[1764004232688,3.36,134.23,134.21,12.75390293]
[1764004232988,3.36,134.23,134.21,0.67]
[1764004234761,28.39276693,134.27,134.22,12.08390293]
[1764004234955,3.36,134.26,134.24,12.08390293]
[1764004235385,3.36,134.26,134.25,0.67]
[1764004235759,3.36,134.26,134.24,12.08390293]
[1764004235967,3.36,134.26,134.24,0.67]
[1764004236166,3.36,134.26,134.23,12.08390293]
[1764004236565,3.36,134.26,134.24,0.67]
[1764004239285,12.08390293,134.25,134.21,12.75390293]
[1764004239472,12.08390293,134.25,134.22,0.67]
[1764004239801,12.08390293,134.24,134.2,0.67]
[1764004239998,12.08390293,134.25,134.2,12.75390293]
[1764004240371,12.08390293,134.25,134.21,0.67]
[1764004242371,12.08390293,134.24,134.21,0.67]
[1764004242994,12.08390293,134.25,134.21,0.67]
[1764004243298,12.08390293,134.24,134.19,12.28390293]
[1764004243495,3.36,134.23,134.19,12.95390293]
[1764004243713,3.36,134.23,134.19,12.28390293]
[1764004243876,3.36,134.23,134.2,0.67]
[1764004244707,3.36,134.22,134.21,12.08390293]
[1764004245208,3.36,134.22,134.21,0.67]
[1764004245606,3.36,134.23,134.21,0.67]
[1764004245991,16.308864,134.27,134.22,12.08390293]
[1764004246202,3.36,134.25,134.22,12.08390293]
[1764004246384,3.36,134.25,134.23,0.67]
[1764004247613,3.36,134.25,134.23,12.75390293]
[1764004247989,3.36,134.25,134.23,0.67]
[1764004248588,3.36,134.25,134.19,29.27276693]
[1764004248589,12.08390293,134.24,134.19,29.27276693]
[1764004248911,12.08390293,134.23,134.19,29.27276693]
[1764004249115,3.36,134.22,134.2,0.68]
[1764004250138,3.36,134.22,134.2,12.76390293]
[1764004250499,3.36,134.22,134.21,0.68]
[1764004251623,3.36,134.22,134.19,0.2]
[1764004251918,15.44390293,134.22,134.19,0.88]
[1764004252695,3.36,134.22,134.19,0.88]
[1764004252911,15.44390293,134.22,134.19,0.88]
[1764004253090,3.36,134.22,134.19,0.2]
[1764004253287,3.36,134.22,134.2,0.7]
[1764004254323,3.36,134.22,134.19,0.2]
[1764004254623,15.44390293,134.22,134.19,0.9]
[1764004254813,3.36,134.22,134.19,0.9]
[1764004255619,15.44390293,134.22,134.19,0.9]
[1764004256308,15.44390293,134.22,134.19,0.2]
[1764004256912,15.44390293,134.22,134.19,0.9]
[1764004259312,15.44390293,134.22,134.19,0.2]
[1764004259511,3.36,134.22,134.19,0.2]
[1764004259723,15.44390293,134.22,134.19,0.9]
[1764004260238,12.08390293,134.2,134.19,0.2]
[1764004260812,12.08390293,134.2,134.13,0.7]
[1764004260813,16.308864,134.17,134.08,12.08390293]
[1764004261021,12.08390293,134.15,134.09,0.7]
[1764004261319,12.08390293,134.15,134.09,12.78390293]
[1764004261520,12.08390293,134.15,134.1,0.7]
[1764004261913,9.78882769,134.15,134.08,0.7]
[1764004262114,21.87273062,134.15,134.08,0.7]
[1764004262419,25.23273062,134.15,134.08,0.7]
[1764004263312,15.44390293,134.15,134.09,0.7]
[1764004263646,15.44390293,134.15,134.12,0.7]
[1764004264520,3.36,134.15,134.12,0.7]
[1764004264819,3.36,134.15,134.14,0.9]
[1764004265431,15.44390293,134.15,134.14,0.2]
[1764004265819,25.23273062,134.15,134.14,0.2]
[1764004267934,21.87273062,134.15,134.14,0.2]
[1764004268113,25.23273062,134.15,134.14,0.2]
[1764004269625,21.87273062,134.15,134.14,0.2]
[1764004269815,25.23273062,134.15,134.14,0.2]
[1764004271248,35.08167823,134.15,134.14,0.2]
[1764004271456,12.08390293,134.07,134.06,0.2]
[1764004271617,15.44390293,134.07,134.06,0.2]
[1764004272563,12.08390293,134.07,134.06,0.2]
[1764004272854,3.36,134.09,134.06,0.9]
[1764004273018,12.08390293,134.07,134.06,0.2]
[1764004273449,12.76390293,134.07,134.06,0.2]
[1764004274027,22.55273062,134.07,134.06,0.2]
[1764004274447,22.55273062,134.07,134.05,0.2]
[1764004274751,16.12390293,134.06,134.05,0.2]
[1764004275045,29.07276693,134.06,134.05,0.2]
[1764004275246,0.68,134.09,134.05,0.2]
[1764004275421,12.08390293,134.06,134.05,0.2]
[1764004275746,12.08390293,134.07,134.05,0.2]
[1764004276346,3.36,134.06,134.05,0.9]
[1764004276746,3.36,134.06,134.05,0.2]
[1764004277051,3.36,134.06,134.05,12.98390293]
[1764004277252,3.36,134.06,134.05,0.9]
[1764004278551,12.08390293,134.08,134.05,0.9]
[1764004278847,3.36,134.06,134.05,0.9]
[1764004279062,3.36,134.06,134.05,0.2]
[1764004280349,15.44390293,134.06,134.05,0.2]
[1764004280549,16.12390293,134.06,134.05,0.2]
[1764004282464,12.76390293,134.06,134.05,0.2]
[1764004282766,3.36,134.06,134.05,0.88]
[1764004282991,12.08390293,134.1,134.05,12.96390293]
[1764004283137,3.36,134.09,134.06,0.68]
[1764004284578,0.69,134.15,134.08,12.08390293]
[1764004284777,12.08390293,134.13,134.08,12.08390293]
[1764004284967,12.08390293,134.12,134.08,0.68]
[1764004285185,15.44390293,134.11,134.08,0.68]
[1764004285484,12.08390293,134.09,134.05,12.96390293]
[1764004285678,3.36,134.08,134.05,12.96390293]
[1764004285894,3.36,134.08,134.06,0.68]
[1764004286068,3.36,134.08,134.06,12.76390293]
[1764004286268,12.08390293,134.11,134.07,12.08390293]
[1764004286472,0.69,134.12,134.07,12.08390293]
[1764004286473,3.36,134.1,134.08,12.08390293]
[1764004286653,3.36,134.1,134.08,0.68]
[1764004286857,3.36,134.1,134.07,12.08390293]
[1764004287075,3.36,134.1,134.09,0.68]
[1764004287261,12.08390293,134.12,134.09,0.68]
[1764004287472,3.36,134.1,134.07,0.68]